lending/lending_fUSD_20260317
["ID","MTS","AMOUNT","RATE_DAILY","PERIOD"]
[408483774,1773736248635,-500.0,0.0001345,2]
[408483775,1773736248644,-500.0,0.0001345,2]
[408483776,1773736248653,-500.0,0.0001345,2]
[408483777,1773736248663,-500.0,0.0001345,2]
[408483778,1773736248672,-500.0,0.0001345,2]
[408483779,1773736248681,-500.0,0.0001345,2]
[408483780,1773736248690,-500.0,0.0001345,2]
[408483781,1773736248699,-500.0,0.0001345,2]
[408483782,1773736248708,-398.53834822,0.0001345,2]
[408483783,1773736248717,-255.0,0.00013468,2]
[408483784,1773736248726,-620.49885968,0.00013468,2]
[408483785,1773736248736,-1500.0,0.00013468,2]
[408483786,1773736248745,-1500.0,0.00013468,2]
[408483787,1773736248755,-500.0,0.00013476,2]
[408483788,1773736248764,-198.0,0.00013514,2]
[408483789,1773736248773,-1086.33,0.00013514,2]
[408483790,1773736248783,-292.837744,0.00013524,2]
[408483791,1773736248792,-187.446222,0.00013524,2]
[408483792,1773736248802,-160.0,0.00013524,2]
[408483793,1773736248811,-391.087733,0.00013524,2]
[408483794,1773736248820,-622.175466,0.00013524,2]
[408483795,1773736248829,-1009.80182332,0.00013568,2]
[408483796,1773736248839,-200.0,0.00013579,2]
[408483797,1773736248849,-180.33,0.00013612,2]
[408483798,1773736248859,-1680.0,0.00013617,2]
[408483799,1773736248868,-507.50732285,0.00013698,2]
[408483800,1773736248878,-500.0,0.00013698,2]
[408483801,1773736248887,-500.0,0.00013698,2]
[408483802,1773736248896,-500.0,0.00013698,2]
[408483803,1773736248906,-500.0,0.00013698,2]
[408483804,1773736248915,-500.0,0.00013698,2]
[408483805,1773736248924,-500.0,0.00013698,2]
[408483806,1773736248932,-500.0,0.00013698,2]
[408483807,1773736248941,-500.0,0.00013698,2]
[408483808,1773736248950,-517.83234914,0.00013698,2]
[408483809,1773736248959,-500.0,0.00013698,2]
[408483810,1773736248968,-500.0,0.00013698,2]
[408483811,1773736248977,-500.0,0.00013698,2]
[408483812,1773736248986,-500.0,0.00013698,2]
[408483813,1773736248996,-500.0,0.00013698,2]
[408483814,1773736249007,-500.0,0.00013698,2]
[408483815,1773736249016,-500.0,0.00013698,2]
[408483816,1773736249026,-500.0,0.00013698,2]
[408483817,1773736249035,-500.0,0.00013698,2]
[408483818,1773736249046,-500.0,0.00013698,2]
[408483819,1773736249054,-500.0,0.00013698,2]
[408483820,1773736249064,-500.0,0.00013698,2]
[408483821,1773736249076,-500.0,0.00013698,2]
[408483822,1773736249085,-500.0,0.00013698,2]
[408483823,1773736249094,-500.0,0.00013698,2]
[408483824,1773736249103,-500.0,0.00013698,2]
[408483825,1773736249112,-500.0,0.00013698,2]
[408483826,1773736249122,-500.0,0.00013698,2]
[408483827,1773736249132,-500.0,0.00013698,2]
[408483828,1773736249142,-500.0,0.00013698,2]
[408483829,1773736249153,-500.0,0.00013698,2]
[408483830,1773736249162,-500.0,0.00013698,2]
[408483831,1773736249171,-541.56033605,0.00013698,2]
[408483832,1773736249180,-500.0,0.00013698,2]
[408483833,1773736249190,-500.0,0.00013698,2]
[408483834,1773736249199,-500.0,0.00013698,2]
[408483835,1773736249207,-500.0,0.00013698,2]
[408483836,1773736249216,-500.0,0.00013698,2]
[408483837,1773736249225,-500.0,0.00013698,2]
[408483838,1773736249234,-500.0,0.00013698,2]
[408483839,1773736249244,-500.0,0.00013698,2]
[408483840,1773736249253,-500.0,0.00013698,2]
[408483841,1773736249262,-500.0,0.00013698,2]
[408483842,1773736249271,-379.28357264,0.00013698,2]
[408483843,1773736249280,-500.0,0.00013698,2]
[408483844,1773736249289,-500.0,0.00013698,2]
[408483845,1773736249298,-500.0,0.00013698,2]
[408483846,1773736249308,-500.0,0.00013698,2]
[408483847,1773736249317,-500.0,0.00013698,2]
[408483848,1773736249326,-500.0,0.00013698,2]
[408483849,1773736249335,-500.0,0.00013698,2]
[408483850,1773736249344,-500.0,0.00013698,2]
[408483851,1773736249353,-500.0,0.00013698,2]
[408483852,1773736249362,-500.0,0.00013698,2]
[408483853,1773736249371,-215.30448155,0.00013698,2]
[408483854,1773736249380,-500.0,0.00013698,2]
[408483855,1773736249389,-500.0,0.00013698,2]
[408483856,1773736249399,-500.0,0.00013698,2]
[408483857,1773736249408,-288.68534246,0.00013698,2]
[408483858,1773736249418,-500.0,0.00013698,2]
[408483859,1773736249427,-500.0,0.00013698,2]
[408483860,1773736249437,-500.0,0.00013698,2]
[408483861,1773736249446,-521.59387392,0.00013698,2]
[408483862,1773736249455,-500.0,0.00013698,2]
[408483863,1773736249465,-297.89846423,0.00013698,2]
[408483864,1773736249475,-500.0,0.00013698,2]
[408483865,1773736249484,-500.0,0.00013698,2]
[408483866,1773736249494,-500.0,0.00013698,2]
[408483867,1773736249503,-515.29361481,0.00013698,2]
[408483868,1773736249513,-500.0,0.00013698,2]
[408483869,1773736249523,-500.0,0.00013698,2]
[408483870,1773736249532,-500.0,0.00013698,2]
[408483871,1773736249541,-500.0,0.00013698,2]
[408483872,1773736249551,-500.0,0.00013698,2]
[408483873,1773736249560,-500.0,0.00013698,2]
[408483874,1773736249570,-500.0,0.00013698,2]
[408483875,1773736249579,-500.0,0.00013698,2]
[408483876,1773736249588,-500.0,0.00013698,2]
[408483877,1773736249598,-500.0,0.00013698,2]
[408483878,1773736249607,-500.0,0.00013698,2]
[408483879,1773736249616,-500.0,0.00013698,2]
[408483880,1773736249626,-516.15125572,0.00013698,2]
[408483881,1773736249635,-500.0,0.00013698,2]
[408483882,1773736249645,-500.0,0.00013698,2]
[408483883,1773736249654,-511.1229767,0.00013698,2]
[408483884,1773736249663,-500.0,0.00013698,2]
[408483885,1773736249673,-261.45915393,0.00013698,2]
[408483886,1773736249682,-500.0,0.00013698,2]
[408483887,1773736249692,-500.0,0.00013698,2]
[408483888,1773736249701,-500.0,0.00013698,2]
[408483889,1773736249710,-500.0,0.00013698,2]
[408483890,1773736249719,-500.0,0.00013698,2]
[408483891,1773736249728,-500.0,0.00013698,2]
[408483892,1773736249738,-344.38732809,0.00013698,2]
[408483893,1773736249747,-500.0,0.00013698,2]
[408483894,1773736249844,-500.0,0.00013698,2]
[408483895,1773736249853,-500.0,0.00013698,2]
[408483896,1773736249862,-500.0,0.00013698,2]
[408483897,1773736249871,-579.837854,0.00013698,2]
[408483898,1773736249880,-500.0,0.00013698,2]
[408483899,1773736249889,-500.0,0.00013698,2]
[408483900,1773736249898,-500.0,0.00013698,2]
[408483901,1773736249907,-500.0,0.00013698,2]
[408483902,1773736249916,-16339.01,0.00013699,2]
[408483903,1773736249925,-200.0,0.00013699,2]
[408483904,1773736249934,-313.45,0.00013699,2]
[408483905,1773736249942,-2340.82,0.00013699,2]
[408483906,1773736249951,-5000.0,0.00013699,2]
[408483907,1773736249960,-3829.525229,0.00013699,2]
[408483908,1773736249969,-338.22903938,0.00013699,2]
[408483909,1773736249978,-501.10703136,0.00013699,2]
[408483910,1773736249987,-500.0,0.00013699,2]
[408483911,1773736250000,-500.0,0.00013699,2]
[408483912,1773736250009,-502.60017693,0.00013699,2]
[408483913,1773736250019,-500.0,0.00013699,2]
[408483914,1773736250028,-503.33705225,0.00013699,2]
[408483915,1773736250039,-500.0,0.00013699,2]
[408483916,1773736250048,-502.21033799,0.00013699,2]
[408483917,1773736250057,-505.61813804,0.00013699,2]
[408483918,1773736250066,-500.0,0.00013699,2]
[408483919,1773736250077,-598.10473156,0.00013699,2]
[408483920,1773736250086,-534.58794916,0.00013699,2]
[408483921,1773736250096,-500.51684802,0.00013699,2]
[408483922,1773736250106,-500.51441797,0.00013699,2]
[408483923,1773736250115,-500.0,0.00013699,2]
[408483924,1773736250124,-338.98946116,0.00013699,2]
[408483925,1773736250134,-500.0,0.00013699,2]
[408483926,1773736250143,-500.0,0.00013699,2]
[408483927,1773736250152,-501.52451566,0.00013699,2]
[408483928,1773736250161,-502.12753283,0.00013699,2]
[408483929,1773736250171,-500.0,0.00013699,2]
[408483930,1773736250180,-500.0,0.00013699,2]
[408483931,1773736250189,-500.0,0.00013699,2]
[408483932,1773736250198,-500.0,0.00013699,2]
[408483933,1773736250208,-500.0,0.00013699,2]
[408483934,1773736250218,-500.0,0.00013699,2]
[408483935,1773736250228,-162.33149837,0.00013699,2]
[408483936,1773736250238,-500.77956524,0.00013699,2]
[408483937,1773736250247,-500.0,0.00013699,2]
[408483938,1773736250257,-503.32238974,0.00013699,2]
[408483939,1773736250266,-503.23209502,0.00013699,2]
[408483940,1773736250276,-500.0,0.00013699,2]
[408483941,1773736250286,-237.17420246,0.00013699,2]
[408483942,1773736250296,-500.0,0.00013699,2]
[408483943,1773736250305,-500.0,0.00013699,2]
[408483944,1773736250314,-606.75419143,0.00013699,2]
[408483945,1773736250324,-236.69513919,0.00013699,2]
[408483946,1773736250334,-251.61059289,0.00013699,2]
[408483947,1773736250344,-843.0,0.000137,2]
[408483948,1773736250354,-216.70453779,0.000137,2]
[408483949,1773736250364,-181.798819,0.000137,2]
[408483950,1773736250373,-166.81,0.00013731,2]
[408483951,1773736250383,-500.0,0.0001375,2]
[408483952,1773736250393,-874.70888613,0.00013768,2]
[408483953,1773736250403,-500.0,0.00013788,2]
[408483954,1773736250412,-1086.33,0.00013788,2]
[408483955,1773736250422,-671.91518375,0.00013799,2]
[408483956,1773736250432,-670.54214324,0.00013799,2]
[408483957,1773736250441,-696.93789086,0.00013799,2]
[408483958,1773736250451,-77273.0015234,0.000138,2]
[408483959,1773736250462,-500.0,0.000138,2]
[408483960,1773736250475,-500.0,0.000138,2]
[408483961,1773736250485,-500.0,0.000138,2]
[408483962,1773736250495,-500.0,0.000138,2]
[408483963,1773736250504,-500.0,0.000138,2]
[408483964,1773736250515,-500.0,0.000138,2]
[408483965,1773736250524,-500.0,0.000138,2]
[408483966,1773736250533,-500.0,0.000138,2]
[408483967,1773736250543,-500.0,0.000138,2]
[408483968,1773736250552,-554.46,0.000138,2]
[408483969,1773736250562,-551.37,0.000138,2]
[408483970,1773736250572,-526.12,0.000138,2]
[408483971,1773736250581,-500.0,0.000138,2]
[408483972,1773736250591,-500.0,0.000138,2]
[408483973,1773736250600,-356.06,0.000138,2]
[408483974,1773736250609,-188.120233,0.000138,2]
[408483975,1773736250619,-188.120233,0.000138,2]
[408483976,1773736250630,-188.120233,0.000138,2]
[408483977,1773736250640,-188.120233,0.000138,2]
[408483978,1773736250649,-151.0,0.000138,2]
[408483979,1773736250658,-151.0,0.000138,2]
[408483980,1773736250668,-151.0,0.000138,2]
[408483981,1773736250678,-161.856593,0.000138,2]
[408483982,1773736250687,-242.162736,0.000138,2]
[408483983,1773736250697,-605.68775473,0.00013811,2]
[408483984,1773736250707,-7640.84347337,0.00013833,2]
[408483985,1773736251071,-385.32987663,0.00013833,2]
[408483986,1773736251080,-4745.20076986,0.00013864,2]
[408483987,1773736251328,-491.0,0.00013444,2]
[408483988,1773736251338,-2273.6953389,0.00013864,2]
[408483989,1773736251347,-101.78600647,0.0001389,2]
[408483990,1773736251358,-1898.21399353,0.0001389,2]
[408483991,1773736251367,-129.60589496,0.00013896,2]
[408483994,1773737224016,1100.0,0.000119,4]
[408483998,1773737298411,1000.0,0.00011,30]
[408483999,1773737308103,1000.0,0.00012,30]
[408484000,1773737331774,1000.0,0.0001,30]
[408484001,1773737343841,1000.0,0.00011,30]
[408484002,1773737370213,1489.71,0.00012,30]
[408484009,1773737432080,-240.0,0.00011055,2]
[408484010,1773737432090,-166.66,0.00011055,2]
[408484011,1773737432099,-89.5884482,0.00011288,2]
[408484012,1773737432111,-77.0715518,0.00011288,2]
[408484013,1773737432120,-200.0,0.00011426,2]
[408484014,1773737432130,-279.53134012,0.00011434,2]
[408484019,1773737432626,-1720.46865988,0.00011434,2]
[408484020,1773737432635,-166.66,0.0001152,2]
[408484021,1773737432645,-166.66,0.00011753,2]
[408484022,1773737432655,-254.0,0.00011888,2]
[408484023,1773737432665,-166.66,0.00011986,2]
[408484024,1773737432674,-56004.93858907,0.0001208,2]
[408484025,1773737432686,-21014.51891093,0.0001208,2]
[408484026,1773737432695,-300.0,0.00012099,2]
[408484027,1773737432706,-1200.0,0.00012099,2]
[408484028,1773737432716,-893.16450277,0.000121,2]
[408484029,1773737432725,-2176.52121053,0.000121,2]
[408484030,1773737432735,-2214.63530453,0.000121,2]
[408484031,1773737432745,-2006.75887768,0.000121,2]
[408484032,1773737432754,-2422.51173146,0.000121,2]
[408484033,1773737432764,-265.0,0.00012106,2]
[408484034,1773737432773,-303.55775057,0.00012112,2]
[408484035,1773737432783,-218.0,0.00012112,2]
[408484036,1773737432792,-887.0,0.00012136,2]
[408484037,1773737432801,-452.0,0.00012136,2]
[408484038,1773737432811,-150.0,0.0001216,2]
[408484039,1773737432820,-775.71758659,0.00012161,2]
[408484040,1773737432830,-250.0,0.00012161,2]
[408484041,1773737432839,-6759.8903,0.0001218,2]
[408484042,1773737432848,-153.25761504,0.0001218,2]
[408484043,1773737432858,-8379.62705975,0.0001218,2]
[408484044,1773737432870,-9044.45457969,0.0001218,2]
[408484045,1773737432879,-9501.68414745,0.0001218,2]
[408484046,1773737432890,-396.51543625,0.0001218,2]
[408484047,1773737432899,-72.15244193,0.00012219,2]
[408484048,1773737432911,-94.50755807,0.00012219,2]
[408484049,1773737432920,-570.67175883,0.00012221,2]
[408484050,1773737432931,-47.57634362,0.00012221,2]
[408484051,1773737432940,-1906.09,0.00012257,2]
[408484052,1773737432949,-47.40961445,0.00012273,2]
[408484053,1773737432961,-434.57679024,0.00012273,2]
[408484075,1773737440793,-100.4388608,0.00012273,2]
[408484076,1773737440804,-841.56,0.00012273,2]
[408484077,1773737440814,-500.0,0.00012273,2]
[408484078,1773737440823,-500.0,0.00012273,2]
[408484079,1773737440833,-500.0,0.00012273,2]
[408484080,1773737440843,-606.76803504,0.00012273,2]
[408484081,1773737440852,-151.0,0.00012273,2]
[408484082,1773737440861,-151.0,0.00012273,2]
[408484083,1773737440871,-151.0,0.00012273,2]
[408484084,1773737440880,-151.0,0.00012273,2]
[408484085,1773737440890,-200.0,0.00012273,2]
[408484086,1773737440900,-151.0,0.00012273,2]
[408484087,1773737440911,-500.0,0.00012273,2]
[408484088,1773737440921,-151.0,0.00012273,2]
[408484089,1773737440934,-500.0,0.00012273,2]
[408484090,1773737440944,-151.0,0.00012273,2]
[408484091,1773737440954,-500.0,0.00012273,2]
[408484092,1773737440964,-202.22721731,0.00012273,2]
[408484093,1773737440974,-500.0,0.00012273,2]
[408484094,1773737440984,-500.0,0.00012273,2]
[408484095,1773737440994,-151.0,0.00012273,2]
[408484096,1773737441004,-151.0,0.00012273,2]
[408484097,1773737441014,-151.0,0.00012273,2]
[408484098,1773737441024,-151.0,0.00012273,2]
[408484099,1773737441034,-151.0,0.00012273,2]
[408484100,1773737441056,-151.0,0.00012273,2]
[408484101,1773737441067,-151.0,0.00012273,2]
[408484102,1773737441076,-151.0,0.00012273,2]
[408484103,1773737441086,-151.0,0.00012273,2]
[408484104,1773737441096,-151.0,0.00012273,2]
[408484105,1773737441105,-151.0,0.00012273,2]
[408484106,1773737441114,-151.0,0.00012273,2]
[408484107,1773737441123,-151.0,0.00012273,2]
[408484108,1773737441133,-151.0,0.00012273,2]
[408484109,1773737441143,-151.0,0.00012273,2]
[408484110,1773737441153,-151.0,0.00012273,2]
[408484111,1773737441163,-151.0,0.00012273,2]
[408484112,1773737441172,-151.0,0.00012273,2]
[408484113,1773737441182,-151.0,0.00012273,2]
[408484114,1773737441192,-151.0,0.00012273,2]
[408484115,1773737441202,-151.0,0.00012273,2]
[408484116,1773737441211,-151.0,0.00012273,2]
[408484117,1773737441221,-151.0,0.00012273,2]
[408484118,1773737441230,-151.0,0.00012273,2]
[408484119,1773737441240,-151.0,0.00012273,2]
[408484120,1773737441250,-151.0,0.00012273,2]
[408484121,1773737441260,-500.0,0.00012279,2]
[408484122,1773737441270,-500.0,0.00012279,2]
[408484123,1773737441280,-500.0,0.00012279,2]
[408484124,1773737441290,-500.0,0.00012279,2]
[408484125,1773737441299,-500.0,0.00012279,2]
[408484126,1773737441309,-500.0,0.00012279,2]
[408484127,1773737441318,-500.0,0.00012279,2]
[408484128,1773737441329,-500.0,0.00012279,2]
[408484129,1773737441342,-500.0,0.00012279,2]
[408484130,1773737441352,-500.0,0.00012279,2]
[408484131,1773737441362,-500.0,0.00012279,2]
[408484132,1773737441371,-500.0,0.00012279,2]
[408484133,1773737441381,-500.0,0.00012279,2]
[408484134,1773737441392,-500.0,0.00012279,2]
[408484135,1773737441405,-384.80276818,0.00012279,2]
[408484136,1773737441414,-175.93801384,0.00012279,2]
[408484137,1773737441424,-176.11785938,0.00012279,2]
[408484138,1773737441434,-150.51954285,0.00012279,2]
[408484139,1773737441443,-7674.73,0.0001228,2]
[408484140,1773737441453,-150.99,0.0001228,2]
[408484141,1773737441462,-489.23,0.0001228,2]
[408484142,1773737441471,-869.64,0.0001228,2]
[408484143,1773737441480,-499.99,0.0001228,2]
[408484144,1773737441490,-150.99,0.0001228,2]
[408484145,1773737441500,-9999.99,0.0001228,2]
[408484146,1773737441509,-1263.43,0.0001228,2]
[408484147,1773737441519,-500.0,0.00012315,2]
[408484148,1773737441529,-363.15892453,0.00012315,2]
[408484149,1773737441539,-500.0,0.00012315,2]
[408484150,1773737441557,-500.0,0.00012315,2]
[408484151,1773737441723,-494.696152,0.00012315,2]
[408484152,1773737441759,-437.62507474,0.00012315,2]
[408484153,1773737441773,-500.0,0.00012315,2]
[408484154,1773737441783,-3115.33897059,0.00012316,2]
[408484164,1773737446450,-1121.29404497,0.00012316,2]
[408484167,1773737476394,796.0,0.00012,10]
[408484168,1773737526510,165.0,0.00012,3]
[408484170,1773737860076,1098.89,5.619e-05,2]
[408484171,1773737860268,1098.89,5.915e-05,2]
[408484172,1773737860472,1098.89,6.21e-05,2]
[408484173,1773737860663,1098.89,6.506e-05,2]
[408484174,1773737860867,1098.89,6.802e-05,2]
[408484175,1773737861059,1098.89,7.097e-05,2]
[408484176,1773737861252,1098.89,7.393e-05,2]
[408484177,1773737861454,1098.89,7.689e-05,2]
[408484178,1773737861654,1098.89,7.985e-05,2]
[408484179,1773737861848,1098.89,8.28e-05,2]
[408484180,1773737862046,1098.89,8.576e-05,2]
[408484181,1773737862258,1098.89,8.872e-05,2]
[408484182,1773737862462,1098.89,9.167e-05,2]
[408484183,1773737862660,1098.89,9.463e-05,2]
[408484184,1773737862865,1098.89,9.759e-05,2]
[408484186,1773738160939,10217.61388906,0.0001,2]
[408484187,1773738162750,348.05153164,0.0001,2]
[408484188,1773738173866,165.74,8.463e-05,2]
[408484189,1773738174082,165.74,9.874e-05,2]
[408484190,1773738320364,274.1560491,9.954e-05,2]
[408484191,1773738339982,-300.0,0.00010054,2]
[408484192,1773738340007,-60.93462514,0.00010054,2]
[408484193,1773738424532,1600.0,0.000116,4]
[408484194,1773738426611,3200.0,0.000117,4]
[408484195,1773738428716,4900.0,0.000118,4]
[408484196,1773738430809,5254.75677168,0.000119,4]
[408484197,1773738563636,-1852.42,0.00010036,2]
[408484198,1773738563660,-1200.0,0.00010048,2]
[408484199,1773738563681,-150.0,0.00010048,2]
[408484200,1773738563703,-300.0,0.00010048,2]
[408484201,1773738563725,-200.0,0.00010049,2]
[408484202,1773738563750,-151.0,0.00010049,2]
[408484203,1773738563770,-151.0,0.00010049,2]
[408484204,1773738563794,-151.0,0.00010049,2]
[408484205,1773738563820,-151.0,0.00010049,2]
[408484206,1773738563843,-151.0,0.00010049,2]
[408484207,1773738563863,-151.0,0.00010049,2]
[408484208,1773738563884,-151.0,0.00010049,2]
[408484209,1773738563905,-151.0,0.00010049,2]
[408484210,1773738563927,-151.0,0.00010049,2]
[408484211,1773738563948,-151.0,0.00010049,2]
[408484212,1773738563970,-151.0,0.00010049,2]
[408484213,1773738563991,-151.0,0.00010049,2]
[408484214,1773738564011,-151.0,0.00010049,2]
[408484215,1773738564035,-151.0,0.00010049,2]
[408484216,1773738564056,-151.0,0.00010049,2]
[408484217,1773738564076,-151.0,0.00010049,2]
[408484218,1773738564097,-151.0,0.00010049,2]
[408484219,1773738564117,-151.0,0.00010049,2]
[408484220,1773738564138,-151.0,0.00010049,2]
[408484221,1773738564330,-151.0,0.00010049,2]
[408484222,1773738564352,-300.0,0.00010054,2]
[408484223,1773738564372,-300.0,0.00010054,2]
[408484224,1773738564394,-1200.0,0.00010054,2]
[408484225,1773738564416,-1098.89,0.00010055,2]
[408484226,1773738564436,-172.86198627,0.00010055,2]
[408484227,1773738564455,-30000.0,0.00010055,2]
[408484228,1773738564474,-233.0,0.00010055,2]
[408484229,1773738564494,-2218.92861617,0.00010104,2]
[408484230,1773738564513,-219.89582586,0.00010104,2]
[408484231,1773738564534,-1098.89,0.0001035,2]
[408484232,1773738564554,-274.15604908,0.0001053,2]
[408484233,1773738564575,-201.90892097,0.00010597,2]
[408484234,1773738564596,-1098.89,0.00010646,2]
[408484235,1773738564616,-1000.0,0.00010689,2]
[408484236,1773738564635,-995.99,0.0001069,2]
[408484237,1773738564656,-241.0,0.00010729,2]
[408484238,1773738564677,-1098.89,0.00010942,2]
[408484239,1773738564697,-345.0,0.00010943,2]
[408484240,1773738564717,-150.0,0.00010959,2]
[408484241,1773738564740,-250.0,0.00011039,2]
[408484242,1773738564760,-1385.0,0.00011052,2]
[408484243,1773738564792,-420.0,0.00011052,2]
[408484244,1773738564817,-255.0,0.00011053,2]
[408484245,1773738564838,-3263.7817492,0.00011058,2]
[408484246,1773738564860,-250.0,0.00011058,2]
[408484247,1773738564881,-301.0,0.00011059,2]
[408484248,1773738564902,-420.0,0.00011059,2]
[408484249,1773738564923,-1680.0,0.00011059,2]
[408484250,1773738564944,-3351.72738319,0.00011059,2]
[408484251,1773738573101,-1648.27261681,0.00011059,2]
[408484252,1773738573122,-175.88806715,0.00011059,2]
[408484253,1773738573143,-250.0,0.00011059,2]
[408484254,1773738573165,-500.0,0.00011059,2]
[408484255,1773738573185,-274.15604908,0.00011105,2]
[408484256,1773738573207,-5159.38,0.00011117,2]
[408484257,1773738573227,-18293.65098222,0.00011181,2]
[408484258,1773738573248,-358.18864893,0.00011181,2]
[408484259,1773738573267,-500.0,0.00011205,2]
[408484260,1773738573286,-1837.0,0.00011221,2]
[408484261,1773738573306,-441.0,0.0001123,2]
[408484262,1773738573326,-1098.89,0.00011238,2]
[408484263,1773738573347,-264.0,0.00011244,2]
[408484264,1773738573368,-319.0,0.00011253,2]
[408484265,1773738573388,-500.0,0.00011273,2]
[408484266,1773738573409,-500.0,0.00011273,2]
[408484267,1773738573427,-500.4240839,0.00011273,2]
[408484268,1773738573446,-500.0,0.00011273,2]
[408484269,1773738573465,-500.0,0.00011273,2]
[408484270,1773738573485,-500.0,0.00011273,2]
[408484271,1773738573503,-500.0,0.00011273,2]
[408484272,1773738573522,-500.0,0.00011273,2]
[408484273,1773738573541,-500.0,0.00011273,2]
[408484274,1773738573560,-500.0,0.00011273,2]
[408484275,1773738573580,-1431.36,0.00011281,2]
[408484276,1773738573599,-543.56029816,0.00011281,2]
[408484283,1773738632201,-3346.15,0.00010918,2]
[408484285,1773738632211,-500.0,0.00011273,2]
[408484288,1773738632220,-167.29803993,0.00011273,2]
[408484290,1773738632229,-500.0,0.00011273,2]
[408484292,1773738632238,-500.0,0.00011273,2]
[408484294,1773738632248,-500.0,0.00011273,2]
[408484295,1773738632258,-242.0,0.00011273,2]
[408484296,1773738632267,-1200.0,0.0001128,2]
[408484297,1773738632277,-300.0,0.0001128,2]
[408484298,1773738632288,-5225.36102192,0.00011281,2]
[408484299,1773738632299,-1521.19773247,0.00011281,2]
[408484300,1773738632338,-5.41846156,0.00011281,2]
[408484304,1773738632492,-2704.45248589,0.00011281,2]
[408484306,1773738632502,-545.11,0.00011281,2]
[408484308,1773738632511,-699.54,0.00011281,2]
[408484310,1773738632521,-999.99,0.00011281,2]
[408484312,1773738632529,-28005.58,0.00011281,2]
[408484314,1773738632540,-9999.99,0.00011281,2]
[408484316,1773738632548,-9877.21,0.00011281,2]
[408484318,1773738632557,-150.99,0.00011281,2]
[408484320,1773738632566,-499.99,0.00011281,2]
[408484322,1773738632575,-5361.6,0.00011281,2]
[408484324,1773738632584,-299.99,0.00011281,2]
[408484326,1773738632593,-1478.39,0.00011281,2]
[408484328,1773738632602,-150.99,0.00011281,2]
[408484330,1773738632611,-79311.07,0.00011281,2]
[408484332,1773738632620,-319.38,0.00011281,2]
[408484334,1773738632629,-9999.99,0.00011281,2]
[408484335,1773738632638,-2993.86,0.00011281,2]
[408484337,1773738632647,-367.9760655,0.00011283,2]
[408484339,1773738632656,-165.74,0.00011284,2]
[408484341,1773738632665,-4282.11,0.00011356,2]
[408484343,1773738632675,-233.0,0.00011392,2]
[408484345,1773738632685,-660.0,0.00011422,2]
[408484348,1773738632695,-230.0,0.00011445,2]
[408484350,1773738632705,-500.0,0.00011479,2]
[408484352,1773738632715,-193.0,0.00011556,2]
[408484354,1773738632724,-241.0,0.00011729,2]
[408484356,1773738632734,-585.19334449,0.00011821,2]
[408484358,1773738632743,-1000.0,0.00011821,2]
[408484360,1773738632756,-1000.0,0.00011821,2]
[408484362,1773738632766,-1000.0,0.00011821,2]
[408484364,1773738632775,-232.29411832,0.00011821,2]
[408484365,1773738632788,-1000.0,0.00011821,2]
[408484367,1773738632797,-1000.0,0.00011821,2]
[408484369,1773738632807,-1000.0,0.00011821,2]